[Event "Titled Tuesday Blitz March 21 Late 2023"]
[White "Bruedigam, Martin"]
[Black "Makhnev, Denis"]
[WhiteFideId "24608033"]
[BlackFideId "13707647"]
[WhiteElo "2331"]
[BlackElo "2525"]
[Result "0-1"]
[Round "10"]
[TimeControl "180+2"]
[Date "2023.03.21"]
[WhiteClock "0:01:06"]
[BlackClock "0:02:00"]

1. d4 {[%clk 0:03:00]}  d5 {[%clk 0:02:56]} 2. c4 {[%clk 0:03:01]}  Nc6 {[%clk 0:02:56]} 3. Nf3 {[%clk 0:02:55]}  Bg4 {[%clk 0:02:56]} 4. cxd5 {[%clk 0:02:49]}  Bxf3 {[%clk 0:02:55]} 5. dxc6 {[%clk 0:02:44]}  Bxc6 {[%clk 0:02:55]} 6. Nc3 {[%clk 0:02:42]}  Nf6 {[%clk 0:02:55]} 7. f3 {[%clk 0:02:32]}  e5 {[%clk 0:02:33]} 8. dxe5 {[%clk 0:02:24]}  Qxd1+ {[%clk 0:02:34]} 9. Nxd1 {[%clk 0:02:22]}  Bb4+ {[%clk 0:02:34]} 10. Bd2 {[%clk 0:02:22]}  Bxd2+ {[%clk 0:02:34]} 11. Kxd2 {[%clk 0:02:22]}  O-O-O+ {[%clk 0:02:34]} 12. Kc2 {[%clk 0:02:18]}  Nd7 {[%clk 0:02:34]} 13. Nc3 {[%clk 0:02:13]}  Nxe5 {[%clk 0:02:34]} 14. e4 {[%clk 0:02:13]}  g5 {[%clk 0:02:31]} 15. Be2 {[%clk 0:02:10]}  h5 {[%clk 0:02:21]} 16. Rad1 {[%clk 0:02:08]}  h4 {[%clk 0:02:19]} 17. Rxd8+ {[%clk 0:02:07]}  Rxd8 {[%clk 0:02:19]} 18. g3 {[%clk 0:02:00]}  Rh8 {[%clk 0:02:10]} 19. f4 {[%clk 0:01:29]}  Ng6 {[%clk 0:02:09]} 20. Rf1 {[%clk 0:01:25]}  hxg3 {[%clk 0:02:08]} 21. hxg3 {[%clk 0:01:26]}  gxf4 {[%clk 0:02:08]} 22. gxf4 {[%clk 0:01:27]}  Rh4 {[%clk 0:02:07]} 23. f5 {[%clk 0:01:26]}  Ne5 {[%clk 0:02:07]} 24. Bd3 {[%clk 0:01:07]}  Rh2+ {[%clk 0:02:02]} 25. Be2 {[%clk 0:01:06]}  Bxe4+ {[%clk 0:02:02]} 26. Nxe4 {[%clk 0:01:06]}  Rxe2+ {[%clk 0:02:01]} 27. Nd2 {[%clk 0:01:06]}  Nc4 {[%clk 0:02:00]} 28. Kd3 {[%clk 0:01:06]}  Nxd2 {[%clk 0:02:00]} 0-1


[Site "https://www.chess.com"]

[Event "Titled Tuesday Blitz March 21 Late 2023"]
[White "Hansen, Eric"]
[Black "Fernandez Guillen, Ernesto J."]
[WhiteFideId "2606771"]
[BlackFideId "3512428"]
[WhiteElo "2569"]
[BlackElo "2423"]
[Result "1-0"]
[Round "10"]
[TimeControl "180+2"]
[Date "2023.03.21"]
[WhiteClock "0:01:47"]
[BlackClock "0:00:46"]

1. d4 {[%clk 0:03:00]}  Nf6 {[%clk 0:02:58]} 2. c4 {[%clk 0:02:54]}  g6 {[%clk 0:02:57]} 3. Nc3 {[%clk 0:02:53]}  Bg7 {[%clk 0:02:55]} 4. h4 {[%clk 0:02:53]}  h6 {[%clk 0:02:54]} 5. e4 {[%clk 0:02:53]}  d6 {[%clk 0:02:54]} 6. Be2 {[%clk 0:02:54]}  O-O {[%clk 0:02:50]} 7. Be3 {[%clk 0:02:54]}  e5 {[%clk 0:02:48]} 8. d5 {[%clk 0:02:54]}  a5 {[%clk 0:02:47]} 9. g4 {[%clk 0:02:53]}  Na6 {[%clk 0:02:46]} 10. g5 {[%clk 0:02:53]}  hxg5 {[%clk 0:02:46]} 11. hxg5 {[%clk 0:02:54]}  Nd7 {[%clk 0:02:44]} 12. Nf3 {[%clk 0:02:53]}  Ndc5 {[%clk 0:02:43]} 13. Nd2 {[%clk 0:02:54]}  Nb4 {[%clk 0:02:41]} 14. Qb1 {[%clk 0:02:52]}  f5 {[%clk 0:02:36]} 15. gxf6 {[%clk 0:02:44]}  Qxf6 {[%clk 0:02:34]} 16. a3 {[%clk 0:02:43]}  Nba6 {[%clk 0:02:24]} 17. Qc2 {[%clk 0:02:38]}  Bd7 {[%clk 0:02:21]} 18. O-O-O {[%clk 0:02:22]}  Nb4 {[%clk 0:02:19]} 19. Qb1 {[%clk 0:02:22]}  b6 {[%clk 0:02:14]} 20. Rdg1 {[%clk 0:02:21]}  Ra7 {[%clk 0:01:59]} 21. Nb5 {[%clk 0:02:16]}  Bxb5 {[%clk 0:01:57]} 22. cxb5 {[%clk 0:02:17]}  Rfa8 {[%clk 0:01:56]} 23. Rg3 {[%clk 0:02:13]}  a4 {[%clk 0:01:04]} 24. Kd1 {[%clk 0:02:11]}  Nb3 {[%clk 0:01:01]} 25. Bg4 {[%clk 0:02:02]}  Nd4 {[%clk 0:00:56]} 26. Bxd4 {[%clk 0:01:54]}  exd4 {[%clk 0:00:52]} 27. Be6+ {[%clk 0:01:54]}  Kf8 {[%clk 0:00:52]} 28. Rf3 {[%clk 0:01:54]}  d3 {[%clk 0:00:49]} 29. e5 {[%clk 0:01:50]}  Qxf3+ {[%clk 0:00:45]} 30. Nxf3 {[%clk 0:01:50]}  Nc2 {[%clk 0:00:46]} 31. Qc1 {[%clk 0:01:47]} 1-0


[Site "https://www.chess.com"]

[Event "Titled Tuesday Blitz March 21 Late 2023"]
[White "Jessel, Stephen"]
[Black "Narayanan.S.L"]
[WhiteFideId "628859"]
[BlackFideId "5058422"]
[WhiteElo "2268"]
[BlackElo "2547"]
[Result "0-1"]
[Round "10"]
[TimeControl "180+2"]
[Date "2023.03.21"]
[WhiteClock "0:00:01"]
[BlackClock "0:00:45"]

1. g3 {[%clk 0:02:39]}  g6 {[%clk 0:02:56]} 2. Bg2 {[%clk 0:02:36]}  f5 {[%clk 0:02:56]} 3. Nf3 {[%clk 0:02:35]}  Bg7 {[%clk 0:02:57]} 4. d4 {[%clk 0:02:32]}  Nf6 {[%clk 0:02:57]} 5. O-O {[%clk 0:02:30]}  O-O {[%clk 0:02:58]} 6. b4 {[%clk 0:02:30]}  d6 {[%clk 0:02:58]} 7. Bb2 {[%clk 0:02:26]}  h6 {[%clk 0:02:59]} 8. c4 {[%clk 0:02:24]}  g5 {[%clk 0:02:50]} 9. Nc3 {[%clk 0:02:24]}  Qe8 {[%clk 0:02:49]} 10. Qb3 {[%clk 0:02:08]}  Kh8 {[%clk 0:02:47]} 11. Nd5 {[%clk 0:02:08]}  Nxd5 {[%clk 0:02:42]} 12. cxd5 {[%clk 0:02:08]}  f4 {[%clk 0:02:40]} 13. Rac1 {[%clk 0:02:05]}  c6 {[%clk 0:02:36]} 14. dxc6 {[%clk 0:02:04]}  Nxc6 {[%clk 0:02:35]} 15. d5 {[%clk 0:02:03]}  Ne5 {[%clk 0:02:35]} 16. Nxe5 {[%clk 0:01:51]}  dxe5 {[%clk 0:02:36]} 17. Rc7 {[%clk 0:01:50]}  Bg4 {[%clk 0:02:36]} 18. Re1 {[%clk 0:01:33]}  Qf7 {[%clk 0:02:28]} 19. Rxb7 {[%clk 0:01:12]}  Rac8 {[%clk 0:02:24]} 20. d6 {[%clk 0:01:04]}  Qxb3 {[%clk 0:02:23]} 21. axb3 {[%clk 0:01:04]}  exd6 {[%clk 0:02:24]} 22. Be4 {[%clk 0:00:48]}  Rb8 {[%clk 0:02:15]} 23. f3 {[%clk 0:00:39]}  Rxb7 {[%clk 0:02:14]} 24. Bxb7 {[%clk 0:00:39]}  Be6 {[%clk 0:02:11]} 25. Ra1 {[%clk 0:00:39]}  Bxb3 {[%clk 0:02:06]} 26. Rxa7 {[%clk 0:00:39]}  Bc4 {[%clk 0:02:07]} 27. Ba6 {[%clk 0:00:39]}  Bxa6 {[%clk 0:01:58]} 28. Rxa6 {[%clk 0:00:39]}  Rb8 {[%clk 0:01:57]} 29. Rxd6 {[%clk 0:00:22]}  Rxb4 {[%clk 0:01:57]} 30. Rd2 {[%clk 0:00:20]}  Kh7 {[%clk 0:01:54]} 31. Kg2 {[%clk 0:00:21]}  Bf6 {[%clk 0:01:51]} 32. Rc2 {[%clk 0:00:13]}  Kg6 {[%clk 0:01:49]} 33. g4 {[%clk 0:00:13]}  h5 {[%clk 0:01:48]} 34. h3 {[%clk 0:00:12]}  h4 {[%clk 0:01:48]} 35. Kf2 {[%clk 0:00:11]}  Kf7 {[%clk 0:01:46]} 36. Kf1 {[%clk 0:00:10]}  Rb6 {[%clk 0:01:42]} 37. Ke1 {[%clk 0:00:09]}  Ke6 {[%clk 0:01:42]} 38. Kd2 {[%clk 0:00:09]}  Be7 {[%clk 0:01:42]} 39. Kc1 {[%clk 0:00:08]}  Bb4 {[%clk 0:01:40]} 40. Bc3 {[%clk 0:00:08]}  Bc5 {[%clk 0:01:41]} 41. Bd2 {[%clk 0:00:07]}  Bd4 {[%clk 0:01:40]} 42. Ba5 {[%clk 0:00:05]}  Ra6 {[%clk 0:01:39]} 43. Bc3 {[%clk 0:00:04]}  Bxc3 {[%clk 0:01:39]} 44. Rxc3 {[%clk 0:00:05]}  Ra1+ {[%clk 0:01:40]} 45. Kd2 {[%clk 0:00:05]}  Rh1 {[%clk 0:01:41]} 46. Rc6+ {[%clk 0:00:05]}  Kf7 {[%clk 0:01:34]} 47. Rc7+ {[%clk 0:00:05]}  Kf8 {[%clk 0:01:31]} 48. Rc8+ {[%clk 0:00:06]}  Ke7 {[%clk 0:01:32]} 49. Rc7+ {[%clk 0:00:06]}  Ke6 {[%clk 0:01:29]} 50. Rc6+ {[%clk 0:00:06]}  Kd5 {[%clk 0:01:30]} 51. Rg6 {[%clk 0:00:06]}  e4 {[%clk 0:01:29]} 52. Rxg5+ {[%clk 0:00:06]}  Kd4 {[%clk 0:01:29]} 53. fxe4 {[%clk 0:00:05]}  Rxh3 {[%clk 0:01:30]} 54. e5 {[%clk 0:00:04]}  Rh2 {[%clk 0:01:24]} 55. Rf5 {[%clk 0:00:05]}  h3 {[%clk 0:01:23]} 56. e6 {[%clk 0:00:05]}  f3 {[%clk 0:00:51]} 57. Rxf3 {[%clk 0:00:05]}  Rg2 {[%clk 0:00:48]} 58. e7 {[%clk 0:00:05]}  h2 {[%clk 0:00:48]} 59. Rh3 {[%clk 0:00:02]}  Rg3 {[%clk 0:00:43]} 60. Rxh2 {[%clk 0:00:02]}  Re3 {[%clk 0:00:44]} 61. Rh7 {[%clk 0:00:02]}  Re6 {[%clk 0:00:44]} 62. g5 {[%clk 0:00:02]}  Ke5 {[%clk 0:00:45]} 63. g6 {[%clk 0:00:03]}  Kf6 {[%clk 0:00:45]} 64. g7 {[%clk 0:00:02]}  Kf7 {[%clk 0:00:46]} 65. Rh8 {[%clk 0:00:01]}  Rd6+ {[%clk 0:00:45]} 0-1


[Site "https://www.chess.com"]

[Event "Titled Tuesday Blitz March 21 Late 2023"]
[White "Chigaev, Maksim"]
[Black "Vovk, Orest"]
[WhiteFideId "4108116"]
[BlackFideId "14113490"]
[WhiteElo "2547"]
[BlackElo "2215"]
[Result "1-0"]
[Round "10"]
[TimeControl "180+2"]
[Date "2023.03.21"]
[WhiteClock "0:00:53"]
[BlackClock "0:00:06"]

1. b3 {[%clk 0:02:57]}  Nf6 {[%clk 0:02:57]} 2. Bb2 {[%clk 0:02:57]}  Rg8 {[%clk 0:02:57]} 3. h4 {[%clk 0:02:52]}  h6 {[%clk 0:02:54]} 4. c4 {[%clk 0:02:52]}  d5 {[%clk 0:02:51]} 5. cxd5 {[%clk 0:02:51]}  Nxd5 {[%clk 0:02:51]} 6. g3 {[%clk 0:02:52]}  g5 {[%clk 0:02:49]} 7. hxg5 {[%clk 0:02:53]}  hxg5 {[%clk 0:02:49]} 8. Bg2 {[%clk 0:02:53]}  Nc6 {[%clk 0:02:46]} 9. Nc3 {[%clk 0:02:53]}  Nxc3 {[%clk 0:02:45]} 10. Bxc3 {[%clk 0:02:53]}  Be6 {[%clk 0:02:33]} 11. d4 {[%clk 0:02:48]}  Bg7 {[%clk 0:02:27]} 12. e3 {[%clk 0:02:46]}  Qd6 {[%clk 0:02:04]} 13. Ne2 {[%clk 0:02:40]}  Bg4 {[%clk 0:01:57]} 14. Qc2 {[%clk 0:02:38]}  O-O-O {[%clk 0:01:50]} 15. Rc1 {[%clk 0:02:35]}  Bd7 {[%clk 0:01:36]} 16. Rh7 {[%clk 0:02:18]}  e6 {[%clk 0:01:26]} 17. Rxg7 {[%clk 0:01:56]}  Rxg7 {[%clk 0:01:15]} 18. d5 {[%clk 0:01:57]}  Ne5 {[%clk 0:01:12]} 19. f4 {[%clk 0:01:57]}  gxf4 {[%clk 0:01:07]} 20. exf4 {[%clk 0:01:58]}  f6 {[%clk 0:00:49]} 21. fxe5 {[%clk 0:01:49]}  fxe5 {[%clk 0:00:50]} 22. dxe6 {[%clk 0:01:31]}  Bc6 {[%clk 0:00:34]} 23. Bxe5 {[%clk 0:01:13]}  Qxe5 {[%clk 0:00:23]} 24. Bxc6 {[%clk 0:01:13]}  bxc6 {[%clk 0:00:21]} 25. Qxc6 {[%clk 0:01:14]}  Kb8 {[%clk 0:00:18]} 26. Rc5 {[%clk 0:00:56]}  Qa1+ {[%clk 0:00:17]} 27. Kf2 {[%clk 0:00:56]}  Rf8+ {[%clk 0:00:10]} 28. Ke3 {[%clk 0:00:56]}  Qf1 {[%clk 0:00:06]} 29. Rb5+ {[%clk 0:00:53]} 1-0


[Site "https://www.chess.com"]

[Event "Titled Tuesday Blitz March 21 Late 2023"]
[White "Ismagilov, Damir"]
[Black "Yeletsky, Ivan"]
[WhiteFideId "34199982"]
[BlackFideId "24180327"]
[WhiteElo "2078"]
[BlackElo "2414"]
[Result "1-0"]
[Round "10"]
[TimeControl "180+2"]
[Date "2023.03.21"]
[WhiteClock "0:00:10"]
[BlackClock "0:00:04"]

1. d4 {[%clk 0:03:00]}  c6 {[%clk 0:03:00]} 2. Nf3 {[%clk 0:03:00]}  Nf6 {[%clk 0:03:00]} 3. c4 {[%clk 0:02:46]}  d5 {[%clk 0:03:00]} 4. e3 {[%clk 0:02:47]}  a6 {[%clk 0:02:59]} 5. Nbd2 {[%clk 0:02:35]}  Bf5 {[%clk 0:02:59]} 6. Be2 {[%clk 0:02:30]}  h6 {[%clk 0:02:56]} 7. O-O {[%clk 0:02:29]}  e6 {[%clk 0:02:56]} 8. b3 {[%clk 0:02:29]}  Nbd7 {[%clk 0:02:54]} 9. Bb2 {[%clk 0:02:30]}  Bd6 {[%clk 0:02:55]} 10. Rc1 {[%clk 0:02:29]}  Qb8 {[%clk 0:02:54]} 11. Re1 {[%clk 0:02:03]}  g5 {[%clk 0:02:49]} 12. Nf1 {[%clk 0:02:02]}  Rg8 {[%clk 0:02:38]} 13. cxd5 {[%clk 0:01:53]}  cxd5 {[%clk 0:02:31]} 14. Bd3 {[%clk 0:01:33]}  Bxd3 {[%clk 0:02:22]} 15. Qxd3 {[%clk 0:01:33]}  Ne4 {[%clk 0:02:23]} 16. Ng3 {[%clk 0:01:28]}  f5 {[%clk 0:02:23]} 17. Qe2 {[%clk 0:00:54]}  Ke7 {[%clk 0:02:14]} 18. Rc2 {[%clk 0:00:47]}  Rc8 {[%clk 0:01:54]} 19. Rxc8 {[%clk 0:00:44]}  Qxc8 {[%clk 0:01:54]} 20. Nxe4 {[%clk 0:00:45]}  dxe4 {[%clk 0:01:46]} 21. Ne5 {[%clk 0:00:44]}  Nf6 {[%clk 0:01:42]} 22. Rc1 {[%clk 0:00:40]}  Qe8 {[%clk 0:01:43]} 23. Nc4 {[%clk 0:00:39]}  Rc8 {[%clk 0:01:37]} 24. Nxd6 {[%clk 0:00:34]}  Rxc1+ {[%clk 0:01:35]} 25. Bxc1 {[%clk 0:00:34]}  Kxd6 {[%clk 0:01:36]} 26. Ba3+ {[%clk 0:00:34]}  Kc7 {[%clk 0:01:31]} 27. Qc4+ {[%clk 0:00:29]}  Qc6 {[%clk 0:01:21]} 28. Bf8 {[%clk 0:00:28]}  h5 {[%clk 0:01:14]} 29. Be7 {[%clk 0:00:27]}  Nh7 {[%clk 0:01:14]} 30. Kf1 {[%clk 0:00:19]}  Qxc4+ {[%clk 0:01:07]} 31. bxc4 {[%clk 0:00:20]}  Kd7 {[%clk 0:01:07]} 32. Bc5 {[%clk 0:00:19]}  b5 {[%clk 0:01:03]} 33. cxb5 {[%clk 0:00:18]}  axb5 {[%clk 0:01:03]} 34. Ke2 {[%clk 0:00:18]}  Nf6 {[%clk 0:01:03]} 35. h3 {[%clk 0:00:16]}  g4 {[%clk 0:00:55]} 36. h4 {[%clk 0:00:15]}  Nd5 {[%clk 0:00:54]} 37. g3 {[%clk 0:00:15]}  Kc6 {[%clk 0:00:22]} 38. Kd2 {[%clk 0:00:14]}  Kb7 {[%clk 0:00:16]} 39. a3 {[%clk 0:00:14]}  Ka6 {[%clk 0:00:17]} 40. Kc2 {[%clk 0:00:13]}  Ka5 {[%clk 0:00:18]} 41. Kb3 {[%clk 0:00:13]}  Nc7 {[%clk 0:00:19]} 42. Bd6 {[%clk 0:00:11]}  Nd5 {[%clk 0:00:14]} 43. Bc5 {[%clk 0:00:12]}  Ka6 {[%clk 0:00:13]} 44. Kc2 {[%clk 0:00:11]}  Nf6 {[%clk 0:00:11]} 45. Be7 {[%clk 0:00:09]}  Ne8 {[%clk 0:00:11]} 46. Bb4 {[%clk 0:00:06]}  Kb6 {[%clk 0:00:11]} 47. Bc5+ {[%clk 0:00:06]}  Kc6 {[%clk 0:00:12]} 48. Bb4 {[%clk 0:00:06]}  Nc7 {[%clk 0:00:13]} 49. Kb3 {[%clk 0:00:06]}  Na8 {[%clk 0:00:13]} 50. Ba5 {[%clk 0:00:06]}  Kd5 {[%clk 0:00:05]} 51. Kb4 {[%clk 0:00:06]}  Kc6 {[%clk 0:00:05]} 52. a4 {[%clk 0:00:07]}  bxa4 {[%clk 0:00:05]} 53. Kxa4 {[%clk 0:00:07]}  Nb6+ {[%clk 0:00:02]} 54. Bxb6 {[%clk 0:00:08]}  Kxb6 {[%clk 0:00:03]} 55. Kb4 {[%clk 0:00:08]}  Kc6 {[%clk 0:00:03]} 56. Ka5 {[%clk 0:00:09]}  Kd5 {[%clk 0:00:02]} 57. Kb5 {[%clk 0:00:09]}  Kd6 {[%clk 0:00:02]} 58. Kb6 {[%clk 0:00:09]}  Kd5 {[%clk 0:00:03]} 59. Kc7 {[%clk 0:00:08]}  Kc4 {[%clk 0:00:02]} 60. Kd6 {[%clk 0:00:09]}  Kd3 {[%clk 0:00:02]} 61. Kxe6 {[%clk 0:00:09]}  Ke2 {[%clk 0:00:03]} 62. Kxf5 {[%clk 0:00:09]}  Kxf2 {[%clk 0:00:04]} 63. Kf4 {[%clk 0:00:10]} 1-0


[Site "https://www.chess.com"]

[Event "Titled Tuesday Blitz March 21 Late 2023"]
[White "Tanenbaum, Zachary"]
[Black "Pniaczek, Marek"]
[WhiteFideId "2060850"]
[BlackFideId "21800421"]
[WhiteElo "2175"]
[BlackElo "2138"]
[Result "1-0"]
[Round "10"]
[TimeControl "180+2"]
[Date "2023.03.21"]
[WhiteClock "0:00:06"]
[BlackClock "0:00:01"]

1. e4 {[%clk 0:03:00]}  e5 {[%clk 0:02:35]} 2. Nf3 {[%clk 0:03:00]}  Nc6 {[%clk 0:02:36]} 3. Bc4 {[%clk 0:02:59]}  Bc5 {[%clk 0:02:35]} 4. c3 {[%clk 0:02:59]}  Nf6 {[%clk 0:02:35]} 5. d4 {[%clk 0:03:00]}  exd4 {[%clk 0:02:36]} 6. b4 {[%clk 0:03:00]}  Bb6 {[%clk 0:02:26]} 7. e5 {[%clk 0:03:00]}  Ne4 {[%clk 0:02:22]} 8. Bd5 {[%clk 0:02:59]}  Nxc3 {[%clk 0:02:21]} 9. Nxc3 {[%clk 0:02:59]}  dxc3 {[%clk 0:02:21]} 10. Bg5 {[%clk 0:02:58]}  Ne7 {[%clk 0:02:21]} 11. O-O {[%clk 0:02:57]}  h6 {[%clk 0:02:21]} 12. Bh4 {[%clk 0:02:57]}  a5 {[%clk 0:02:21]} 13. Qb3 {[%clk 0:02:49]}  O-O {[%clk 0:02:14]} 14. Be4 {[%clk 0:02:37]}  Qe8 {[%clk 0:01:35]} 15. Qxc3 {[%clk 0:02:31]}  axb4 {[%clk 0:01:31]} 16. Qxb4 {[%clk 0:02:32]}  Nc6 {[%clk 0:01:30]} 17. Qd2 {[%clk 0:02:21]}  Nxe5 {[%clk 0:01:19]} 18. Rae1 {[%clk 0:01:37]}  Ba5 {[%clk 0:01:05]} 19. Qc1 {[%clk 0:01:37]}  Bxe1 {[%clk 0:00:54]} 20. Rxe1 {[%clk 0:01:38]}  d6 {[%clk 0:00:52]} 21. Nd4 {[%clk 0:01:18]}  Qa4 {[%clk 0:00:29]} 22. Qc3 {[%clk 0:00:38]}  Qa3 {[%clk 0:00:20]} 23. Qxc7 {[%clk 0:00:32]}  Qxa2 {[%clk 0:00:16]} 24. Qxd6 {[%clk 0:00:26]}  Nc4 {[%clk 0:00:14]} 25. Bh7+ {[%clk 0:00:20]}  Kxh7 {[%clk 0:00:12]} 26. Qxf8 {[%clk 0:00:21]}  Be6 {[%clk 0:00:10]} 27. Qb4 {[%clk 0:00:17]}  Ra4 {[%clk 0:00:09]} 28. Qxb7 {[%clk 0:00:17]}  Qd2 {[%clk 0:00:07]} 29. Qe4+ {[%clk 0:00:16]}  Kh8 {[%clk 0:00:06]} 30. Nxe6 {[%clk 0:00:15]}  fxe6 {[%clk 0:00:06]} 31. Qxe6 {[%clk 0:00:15]}  Nd6 {[%clk 0:00:03]} 32. Bg3 {[%clk 0:00:12]}  Ne4 {[%clk 0:00:03]} 33. Rf1 {[%clk 0:00:07]}  Qe2 {[%clk 0:00:01]} 34. Qe8+ {[%clk 0:00:06]} 1-0


[Site "https://www.chess.com"]

[Event "Titled Tuesday Blitz March 21 Late 2023"]
[White "Omelja, Artem"]
[Black "Popov, Mikhail"]
[WhiteFideId "14119846"]
[BlackFideId "4146182"]
[WhiteElo "2404"]
[BlackElo "2270"]
[Result "1/2-1/2"]
[Round "10"]
[TimeControl "180+2"]
[Date "2023.03.21"]
[WhiteClock "0:00:22"]
[BlackClock "0:00:08"]

1. e4 {[%clk 0:03:00]}  e6 {[%clk 0:00:10]} 2. d3 {[%clk 0:03:00]}  d5 {[%clk 0:00:10]} 3. Nd2 {[%clk 0:03:01]}  Nf6 {[%clk 0:00:09]} 4. Ngf3 {[%clk 0:03:01]}  dxe4 {[%clk 0:00:10]} 5. dxe4 {[%clk 0:03:01]}  b6 {[%clk 0:00:10]} 6. c3 {[%clk 0:03:02]}  Bb7 {[%clk 0:00:11]} 7. Qc2 {[%clk 0:03:02]}  Be7 {[%clk 0:00:11]} 8. Bc4 {[%clk 0:03:03]}  O-O {[%clk 0:00:11]} 9. a4 {[%clk 0:03:03]}  Nbd7 {[%clk 0:00:10]} 10. O-O {[%clk 0:03:01]}  a5 {[%clk 0:00:11]} 11. Re1 {[%clk 0:03:01]}  Nc5 {[%clk 0:00:11]} 12. Nd4 {[%clk 0:02:49]}  Nfd7 {[%clk 0:00:09]} 13. N2f3 {[%clk 0:02:46]}  Bf6 {[%clk 0:00:09]} 14. e5 {[%clk 0:02:43]}  Be7 {[%clk 0:00:09]} 15. Bf4 {[%clk 0:02:42]}  h6 {[%clk 0:00:09]} 16. Rad1 {[%clk 0:02:42]}  Qe8 {[%clk 0:00:09]} 17. Nb5 {[%clk 0:02:40]}  Qc8 {[%clk 0:00:08]} 18. Nfd4 {[%clk 0:02:37]}  Rd8 {[%clk 0:00:08]} 19. Bg3 {[%clk 0:02:32]}  Nf8 {[%clk 0:00:08]} 20. Be2 {[%clk 0:02:26]}  Ng6 {[%clk 0:00:08]} 21. Bh5 {[%clk 0:02:24]}  Nf8 {[%clk 0:00:08]} 22. Bf3 {[%clk 0:02:22]}  Bxf3 {[%clk 0:00:08]} 23. Nxf3 {[%clk 0:02:22]}  Qb7 {[%clk 0:00:08]} 24. Nbd4 {[%clk 0:02:16]}  Ng6 {[%clk 0:00:08]} 25. h4 {[%clk 0:02:11]}  c6 {[%clk 0:00:08]} 26. h5 {[%clk 0:02:08]}  Nf8 {[%clk 0:00:09]} 27. Bf4 {[%clk 0:02:08]}  b5 {[%clk 0:00:09]} 28. axb5 {[%clk 0:01:48]}  cxb5 {[%clk 0:00:10]} 29. Nh2 {[%clk 0:01:49]}  Nh7 {[%clk 0:00:07]} 30. Ndf3 {[%clk 0:01:46]}  b4 {[%clk 0:00:07]} 31. Ng4 {[%clk 0:01:45]}  b3 {[%clk 0:00:07]} 32. Qb1 {[%clk 0:01:43]}  Ng5 {[%clk 0:00:07]} 33. Bxg5 {[%clk 0:01:42]}  hxg5 {[%clk 0:00:07]} 34. h6 {[%clk 0:01:42]}  Rxd1 {[%clk 0:00:05]} 35. Rxd1 {[%clk 0:01:42]}  Qe4 {[%clk 0:00:05]} 36. Qxe4 {[%clk 0:01:26]}  Nxe4 {[%clk 0:00:06]} 37. hxg7 {[%clk 0:01:26]}  Kxg7 {[%clk 0:00:03]} 38. Ne3 {[%clk 0:01:04]}  a4 {[%clk 0:00:03]} 39. Nc4 {[%clk 0:01:04]}  Rc8 {[%clk 0:00:02]} 40. Nb6 {[%clk 0:01:03]}  Rb8 {[%clk 0:00:02]} 41. Nxa4 {[%clk 0:01:02]}  Ra8 {[%clk 0:00:03]} 42. Nb6 {[%clk 0:01:02]}  Ra2 {[%clk 0:00:04]} 43. Nc4 {[%clk 0:01:03]}  Bc5 {[%clk 0:00:04]} 44. Kf1 {[%clk 0:00:46]}  g4 {[%clk 0:00:04]} 45. Nfd2 {[%clk 0:00:44]}  Nxf2 {[%clk 0:00:04]} 46. Rb1 {[%clk 0:00:44]}  Nd3 {[%clk 0:00:04]} 47. Nxb3 {[%clk 0:00:44]}  Ba7 {[%clk 0:00:05]} 48. Nc1 {[%clk 0:00:41]}  Nxc1 {[%clk 0:00:04]} 49. Rxc1 {[%clk 0:00:42]}  Kg6 {[%clk 0:00:04]} 50. Ke2 {[%clk 0:00:42]}  Kf5 {[%clk 0:00:04]} 51. Kd3 {[%clk 0:00:43]}  Kf4 {[%clk 0:00:04]} 52. Rf1+ {[%clk 0:00:43]}  Kg3 {[%clk 0:00:05]} 53. Rxf7 {[%clk 0:00:43]}  Bg1 {[%clk 0:00:06]} 54. Rg7 {[%clk 0:00:38]}  Ra8 {[%clk 0:00:03]} 55. Nd6 {[%clk 0:00:35]}  Rd8 {[%clk 0:00:04]} 56. b4 {[%clk 0:00:35]}  Kf4 {[%clk 0:00:04]} 57. Kc2 {[%clk 0:00:30]}  Ra8 {[%clk 0:00:02]} 58. Kb3 {[%clk 0:00:26]}  Kxe5 {[%clk 0:00:02]} 59. Nc4+ {[%clk 0:00:23]}  Kf4 {[%clk 0:00:03]} 60. b5 {[%clk 0:00:23]}  Kg3 {[%clk 0:00:03]} 61. b6 {[%clk 0:00:23]}  Bxb6 {[%clk 0:00:03]} 62. Nxb6 {[%clk 0:00:20]}  Rb8 {[%clk 0:00:03]} 63. c4 {[%clk 0:00:20]}  Rxb6+ {[%clk 0:00:04]} 64. Kc3 {[%clk 0:00:21]}  e5 {[%clk 0:00:04]} 65. c5 {[%clk 0:00:21]}  Rb8 {[%clk 0:00:04]} 66. Kc4 {[%clk 0:00:22]}  e4 {[%clk 0:00:05]} 67. Kd4 {[%clk 0:00:22]}  Rc8 {[%clk 0:00:05]} 68. Re7 {[%clk 0:00:22]}  Kxg2 {[%clk 0:00:05]} 69. Rxe4 {[%clk 0:00:22]}  g3 {[%clk 0:00:06]} 70. Kd5 {[%clk 0:00:22]}  Kf3 {[%clk 0:00:06]} 71. Re7 {[%clk 0:00:21]}  Rg8 {[%clk 0:00:05]} 72. Re1 {[%clk 0:00:19]}  Kf2 {[%clk 0:00:05]} 73. Ra1 {[%clk 0:00:19]}  g2 {[%clk 0:00:06]} 74. c6 {[%clk 0:00:19]}  g1=Q {[%clk 0:00:06]} 75. Rxg1 {[%clk 0:00:19]}  Kxg1 {[%clk 0:00:06]} 76. c7 {[%clk 0:00:19]}  Kf2 {[%clk 0:00:07]} 77. Kd6 {[%clk 0:00:19]}  Ke3 {[%clk 0:00:07]} 78. Kd7 {[%clk 0:00:20]}  Kd4 {[%clk 0:00:08]} 79. c8=Q {[%clk 0:00:21]}  Rxc8 {[%clk 0:00:08]} 80. Kxc8 {[%clk 0:00:22]} 1/2-1/2


[Site "https://www.chess.com"]